bitfinex-derivatives/quotes_BTCF0:USTF0_20240913
["timestamp","ask_amount","ask_price","bid_price","bid_amount"]
[1726248665652,0.083779,59666.0,59664.0,0.083781]
[1726248665846,0.083779,59666.0,59665.0,0.04979922]
[1726248666347,0.08378,59665.0,59664.0,0.04979922]
[1726248666547,0.083783,59663.0,59662.0,0.06639896]
[1726248666943,1.393783,59663.0,59662.0,0.06639896]
[1726248667250,0.444578,59667.0,59661.0,0.001]
[1726248667251,0.083784,59662.0,59661.0,0.001]
[1726248667748,0.083784,59662.0,59661.0,0.15119364]
[1726248668147,0.083784,59662.0,59661.0,0.083785]
[1726248668743,0.083784,59662.0,59661.0,0.15119556]
[1726248668956,0.083784,59662.0,59661.0,0.15219556]
[1726248669354,0.083784,59662.0,59661.0,0.085785]
[1726248669355,0.13520956,59662.0,59661.0,0.085785]
[1726248669653,0.05142556,59662.0,59661.0,0.085785]
[1726248669859,0.13520956,59662.0,59661.0,0.085785]
[1726248671448,0.13520956,59662.0,59661.0,0.002]
[1726248671653,0.21899356,59662.0,59661.0,0.002]
[1726248671852,0.49600956,59662.0,59661.0,0.002]
[1726248672445,0.49600956,59662.0,59661.0,0.001]
[1726248673052,0.55610296,59662.0,59661.0,0.001]
[1726248673854,0.083787,59660.0,59659.0,0.09417522]
[1726248674152,0.13521396,59660.0,59659.0,0.09417522]
[1726248675261,0.13521396,59660.0,59659.0,0.09817522]
[1726248675444,0.167574,59660.0,59659.0,0.01438822]
[1726248675650,0.083787,59660.0,59659.0,0.01438822]
[1726248675850,0.083787,59660.0,59659.0,0.01738822]
[1726248676357,0.04186894,59660.0,59659.0,0.22885864]
[1726248678347,0.04186894,59660.0,59659.0,0.22585864]
[1726248678546,0.04186894,59660.0,59659.0,0.22685864]
[1726248679558,0.04186894,59660.0,59659.0,0.22385864]
[1726248679745,0.04186894,59660.0,59659.0,0.22685864]
[1726248680052,0.00108,59666.0,59665.0,0.08378]
[1726248680260,0.37092113,59668.0,59667.0,0.083777]
[1726248680453,0.37092113,59668.0,59667.0,0.2945075]
[1726248680946,1.73174001,59673.0,59671.0,0.083771]
[1726248680947,0.08377,59672.0,59671.0,0.083771]
[1726248681149,0.08377,59672.0,59671.0,0.48447778]
[1726248681349,0.08377,59672.0,59671.0,0.35681831]
[1726248682161,0.083771,59671.0,59670.0,0.08304731]
[1726248682365,0.083771,59671.0,59670.0,0.21070664]
[1726248682657,0.083771,59671.0,59670.0,0.21143233]
[1726248682860,0.009,59672.0,59671.0,0.083771]
[1726248683053,0.09277,59672.0,59671.0,0.16677649]
[1726248683252,0.09277,59672.0,59671.0,0.29541736]
[1726248683457,0.09277,59672.0,59671.0,0.084771]
[1726248684155,0.45357,59672.0,59671.0,0.084771]
[1726248684459,0.5580735,59672.0,59671.0,0.083771]
[1726248685759,0.5600735,59672.0,59671.0,0.083771]
[1726248686760,0.5580735,59672.0,59671.0,0.083771]
[1726248687058,0.5600735,59672.0,59671.0,0.083771]
[1726248688455,0.1155035,59672.0,59671.0,0.083771]
[1726248688652,0.05541983,59672.0,59671.0,0.083771]
[1726248691354,0.004,59672.0,59671.0,0.083771]
[1726248692750,0.08777,59672.0,59671.0,0.083771]
[1726248699252,0.004,59672.0,59671.0,0.083771]
[1726248699453,0.004,59672.0,59671.0,0.612113]
[1726248699766,0.004,59672.0,59671.0,0.66181513]
[1726248699960,0.004,59672.0,59671.0,0.528342]
[1726248700668,0.002,59672.0,59671.0,0.528342]
[1726248700863,0.002,59672.0,59671.0,1.632102]
[1726248701063,0.002,59672.0,59671.0,1.668331]
[1726248701361,0.12,59672.0,59671.0,0.002]
[1726248701574,0.12,59672.0,59671.0,0.13545022]
[1726248701869,0.12,59675.0,59672.0,0.083769]
[1726248702958,0.12,59675.0,59671.0,0.001]
[1726248703158,0.08377,59673.0,59671.0,0.001]
[1726248703565,0.12,59672.0,59669.0,0.04968022]
[1726248703761,0.083771,59671.0,59668.0,0.04968022]
[1726248703969,0.083771,59671.0,59669.0,0.04968022]
[1726248704162,0.25955825,59677.0,59670.0,0.083773]
[1726248704360,0.083767,59674.0,59671.0,0.083771]
[1726248705066,0.083769,59673.0,59671.0,0.13345122]
[1726248705277,0.083769,59673.0,59672.0,0.08377]
[1726248705573,0.083769,59673.0,59672.0,0.13345022]
[1726248706272,0.083769,59673.0,59672.0,0.1334756]
[1726248706473,0.083771,59671.0,59670.0,0.003]
[1726248706773,0.083771,59671.0,59667.0,0.0591]
[1726248707170,0.05141674,59670.0,59666.0,0.00993393]
[1726248707361,0.05141752,59669.0,59667.0,0.083777]
[1726248707569,0.05141752,59668.0,59667.0,0.083777]
[1726248707869,0.083774,59670.0,59660.0,0.2533]
[1726248707870,0.083774,59670.0,59668.0,0.083776]
[1726248708074,0.13519232,59669.0,59668.0,0.083776]
[1726248708271,0.083776,59668.0,59667.0,0.008]
[1726248708472,1.77905639,59668.0,59667.0,0.008]
[1726248708776,2.42603239,59668.0,59667.0,0.008]
[1726248709075,1.92323239,59668.0,59667.0,0.008]
[1726248709372,2.42603239,59668.0,59667.0,0.016]
[1726248709967,1.92323239,59668.0,59667.0,0.016]
[1726248710168,1.92523239,59668.0,59667.0,0.008]
[1726248710369,1.92523239,59668.0,59660.0,0.087686]
[1726248710370,0.083785,59661.0,59660.0,0.087686]
[1726248710571,0.49600332,59661.0,59660.0,0.083786]
[1726248710770,0.55608939,59661.0,59660.0,0.083786]
[1726248711780,0.55608939,59661.0,59660.0,0.088786]
[1726248712091,0.47230439,59661.0,59660.0,0.088786]
[1726248712278,0.11150439,59661.0,59660.0,0.172573]
[1726248712474,0.05142579,59661.0,59660.0,0.088787]
[1726248712668,0.05142579,59661.0,59660.0,0.093787]
[1726248713069,0.05142579,59661.0,59660.0,0.454587]
[1726248713582,0.05142579,59661.0,59660.0,0.093787]
[1726248714472,0.083781,59664.0,59661.0,0.083785]
[1726248715678,0.083781,59664.0,59661.0,0.086785]
[1726248716980,0.083781,59664.0,59661.0,0.16959947]
[1726248717276,0.09388815,59667.0,59661.0,0.08881447]
[1726248717477,0.0039,59668.0,59665.0,0.0662377]
[1726248717478,0.083776,59668.0,59665.0,0.0662377]
[1726248717683,0.083776,59668.0,59661.0,0.006]
[1726248717684,0.08378,59665.0,59664.0,0.0662377]
[1726248718278,0.083776,59668.0,59661.0,0.006]
[1726248718478,0.083776,59668.0,59667.0,0.04967824]
[1726248718891,1.95597813,59669.0,59665.0,0.06623341]
[1726248719191,1.95493812,59669.0,59668.0,0.04967358]
[1726248719378,0.083777,59667.0,59666.0,0.06623341]
[1726248719681,0.083777,59667.0,59666.0,0.15001141]
[1726248719886,0.37220313,59669.0,59668.0,0.083776]
[1726248720081,0.0626,59675.0,59665.0,0.16659347]
[1726248720288,0.0626,59675.0,59672.0,0.06620018]
[1726248720474,0.07256066,59675.0,59674.0,0.14996718]
[1726248720681,0.3608,59680.0,59679.0,0.08376]
[1726248720888,0.3608,59680.0,59679.0,0.27376]
[1726248721282,0.3647,59687.0,59680.0,0.083759]
[1726248721492,0.3608,59687.0,59680.0,0.083759]
[1726248721688,0.083755,59683.0,59680.0,0.083759]
[1726248721983,0.083756,59682.0,59680.0,0.083759]
[1726248722187,0.3608,59687.0,59678.0,0.0589]
[1726248722188,0.083758,59681.0,59678.0,0.0589]
[1726248722386,0.37082975,59687.0,59677.0,0.083762]
[1726248722387,0.083759,59680.0,59677.0,0.083762]
[1726248723077,0.083763,59678.0,59676.0,0.083764]
[1726248723681,0.083763,59678.0,59677.0,0.083763]
[1726248724682,0.167526,59677.0,59676.0,0.001]
[1726248724981,0.207863,59677.0,59676.0,0.002]
[1726248725182,0.291626,59677.0,59676.0,0.002]
[1726248725387,0.207863,59677.0,59676.0,0.002]
[1726248725582,0.291626,59677.0,59676.0,0.001]
[1726248726081,0.083771,59671.0,59670.0,0.083772]
[1726248726975,0.083775,59669.0,59667.0,0.01021472]
[1726248727177,0.083775,59669.0,59665.0,0.3608]
[1726248727585,0.083775,59669.0,59668.0,0.083776]
[1726248729193,0.083775,59669.0,59668.0,0.089776]
[1726248729388,0.13619171,59669.0,59668.0,0.089776]
[1726248729686,0.05241671,59669.0,59668.0,0.089776]
[1726248730192,0.05241671,59669.0,59668.0,0.095776]
[1726248732582,0.11249673,59669.0,59668.0,0.095776]
[1726248733589,0.05241671,59669.0,59668.0,1.366088]
[1726248735287,0.05241671,59669.0,59668.0,0.179552]
[1726248735595,0.05241671,59669.0,59668.0,1.282312]
[1726248736389,0.001,59669.0,59668.0,1.282312]
[1726248736892,0.0039,59675.0,59674.0,0.083767]
[1726248737101,0.083763,59678.0,59675.0,0.083765]
[1726248737595,0.19,59676.0,59670.0,0.083773]
[1726248737799,0.083773,59671.0,59668.0,0.102776]
[1726248737999,0.083773,59670.0,59668.0,0.102776]
[1726248738194,0.083774,59669.0,59668.0,0.093776]
[1726248738394,0.083777,59667.0,59666.0,0.0039]
[1726248738593,0.083774,59670.0,59667.0,0.083777]
[1726248738594,0.3608,59670.0,59667.0,0.083777]
[1726248738800,0.083773,59670.0,59668.0,0.083775]
[1726248738993,1.31,59673.0,59667.0,0.19]
[1726248739195,1.31,59673.0,59672.0,0.3608]
[1726248739402,1.31,59673.0,59672.0,0.44457]
[1726248741198,1.31,59673.0,59672.0,0.44557]
[1726248742588,0.0937776,59676.0,59673.0,0.083767]
[1726248743104,0.083761,59679.0,59677.0,0.083763]
[1726248743595,1.31,59678.0,59677.0,0.083763]
[1726248744602,0.083763,59677.0,59674.0,0.083767]
[1726248744798,0.05141281,59676.0,59674.0,0.083767]
[1726248745005,0.05141281,59675.0,59674.0,0.083767]
[1726248745197,0.083763,59677.0,59675.0,0.083766]
[1726248745502,0.05141287,59676.0,59675.0,0.083766]
[1726248747008,0.05341287,59676.0,59675.0,0.083766]
[1726248749402,0.41421287,59676.0,59675.0,0.083766]
[1726248749594,0.47428826,59676.0,59675.0,0.083766]
[1726248750101,0.47428826,59676.0,59670.0,0.083773]
[1726248750102,0.66429339,59676.0,59670.0,0.083773]
[1726248750297,0.3608,59671.0,59665.0,0.36558]
[1726248750499,0.083774,59669.0,59668.0,0.083775]
[1726248750803,0.13518687,59669.0,59668.0,0.083775]
[1726248751504,0.083774,59669.0,59668.0,0.083775]
[1726248751706,0.3608,59671.0,59670.0,0.083773]
[1726248752207,0.3608,59671.0,59670.0,0.13334956]
[1726248752504,0.08376,59680.0,59675.0,0.083766]
[1726248752706,0.3608,59676.0,59675.0,0.083766]
[1726248753708,0.3628,59676.0,59675.0,0.083766]
[1726248754302,0.3608,59676.0,59675.0,0.083766]
[1726248757901,0.3608,59676.0,59675.0,0.0938644]
[1726248759711,0.41221347,59676.0,59675.0,0.0938644]
[1726248761099,0.3608,59676.0,59675.0,0.0938644]
[1726248761301,0.41221341,59676.0,59675.0,0.0938644]
[1726248762515,0.49597741,59676.0,59675.0,0.0938644]
[1726248763507,0.41221341,59676.0,59675.0,0.0938644]
[1726248764709,0.41221341,59676.0,59675.0,0.4546644]
[1726248764710,0.05141341,59676.0,59675.0,0.4546644]
[1726248764907,1.31104001,59678.0,59677.0,0.083763]
[1726248765209,1.36141078,59678.0,59677.0,0.083763]
[1726248765913,1.31,59678.0,59677.0,0.083763]
[1726248766111,1.313,59678.0,59677.0,0.083763]
[1726248767313,0.003,59678.0,59677.0,0.083763]
[1726248767826,0.003,59678.0,59676.0,0.04966039]
[1726248768010,0.003,59678.0,59675.0,0.3608]
[1726248768011,0.083764,59676.0,59675.0,0.3608]
[1726248768209,0.444564,59676.0,59675.0,0.083766]
[1726248769120,0.445564,59676.0,59675.0,0.083766]
[1726248769422,0.3618,59676.0,59675.0,0.083766]
[1726248770020,0.3608,59676.0,59675.0,0.083766]
[1726248770317,0.3608,59676.0,59675.0,0.169532]
[1726248770524,0.3608,59676.0,59675.0,0.085766]
[1726248770729,0.3608,59676.0,59675.0,0.083766]
[1726248771714,0.3608,59676.0,59675.0,0.084766]
[1726248772418,0.3608,59676.0,59675.0,0.085766]
[1726248774624,0.41221548,59676.0,59675.0,0.085766]
[1726248780415,0.47229404,59676.0,59675.0,0.085766]
[1726248780821,0.11149404,59676.0,59675.0,0.085766]
[1726248781124,0.05141547,59676.0,59675.0,0.085766]
[1726248781726,0.083761,59679.0,59678.0,0.083762]
[1726248782422,1.32100676,59680.0,59679.0,0.08376]
[1726248782623,0.0039,59686.0,59681.0,0.083756]
[1726248782930,0.3608,59687.0,59683.0,0.16751]
[1726248783133,0.3608,59687.0,59686.0,0.08375]
[1726248783432,1.434,59690.0,59686.0,0.04972456]
[1726248783433,1.43504001,59690.0,59686.0,0.04972456]
[1726248783621,0.0588,59693.0,59692.0,0.083742]
[1726248784022,0.14254,59693.0,59692.0,0.083742]
[1726248784229,1.45254,59693.0,59690.0,0.04972456]
[1726248784429,1.45254,59693.0,59690.0,0.13346756]
[1726248784629,1.45254,59693.0,59691.0,0.083743]
[1726248784827,1.46266142,59693.0,59692.0,0.083742]
[1726248785023,0.15266142,59693.0,59692.0,0.083742]
[1726248786329,0.15566142,59693.0,59692.0,0.084742]
[1726248786527,0.003,59693.0,59692.0,0.445542]
[1726248787029,0.50738218,59700.0,59699.0,0.083732]
[1726248787030,0.36055118,59700.0,59699.0,0.083732]
[1726248787223,0.35665118,59700.0,59699.0,0.444532]
[1726248787426,0.35665118,59700.0,59699.0,0.51069948]
[1726248787730,0.35665118,59700.0,59699.0,0.444532]
[1726248788317,0.35665118,59700.0,59699.0,0.76319948]
[1726248788521,0.35665118,59700.0,59699.0,0.697032]
[1726248789629,0.35665118,59700.0,59699.0,0.698032]
[1726248790023,0.35665118,59700.0,59699.0,0.699032]
[1726248790529,0.35665118,59700.0,59699.0,0.70940831]
[1726248794729,0.44038218,59700.0,59699.0,0.01237631]
[1726248794926,0.44038218,59700.0,59699.0,0.002]
[1726248795331,1.75038218,59700.0,59699.0,0.002]
[1726248795535,1.80828218,59700.0,59699.0,0.002]
[1726248796837,1.86833447,59700.0,59699.0,0.002]
[1726248804639,1.80828218,59700.0,59699.0,0.002]
[1726248806142,2.33654418,59700.0,59699.0,0.002]
[1726248806336,0.08374,59693.0,59692.0,0.087641]
[1726248806532,0.083749,59688.0,59687.0,0.083745]
[1726248807733,0.083754,59684.0,59682.0,0.0039]
[1726248808052,0.083759,59681.0,59680.0,0.083757]
[1726248808343,1.393759,59681.0,59680.0,0.083757]
[1726248809042,0.083759,59681.0,59680.0,0.083757]
[1726248809636,0.083767,59674.0,59673.0,0.0039]
[1726248809844,0.083763,59678.0,59665.0,0.325]
[1726248809845,0.083771,59672.0,59665.0,0.325]
[1726248810052,0.083771,59672.0,59663.0,0.19562]
[1726248810351,0.083771,59672.0,59671.0,0.083771]
[1726248810944,0.3608,59676.0,59667.0,0.444576]
[1726248811143,0.19,59668.0,59667.0,0.097776]
[1726248811350,0.634576,59668.0,59667.0,0.014]
[1726248811643,0.083785,59661.0,59660.0,0.0039]
[1726248811847,0.08379,59658.0,59654.0,0.325]
[1726248812146,0.08379,59658.0,59650.0,0.0039]
[1726248812147,1.8608,59657.0,59650.0,0.0039]
[1726248812346,0.19,59651.0,59647.0,0.083805]
[1726248812648,0.083801,59650.0,59647.0,0.083805]
[1726248814050,0.083801,59650.0,59647.0,0.097805]
[1726248814944,0.273795,59655.0,59647.0,0.014]
[1726248815146,0.001,59650.0,59649.0,0.083802]
[1726248816459,0.001,59650.0,59647.0,0.028]
[1726248816758,0.001,59650.0,59648.0,0.19]
[1726248816962,0.001,59650.0,59649.0,0.083802]
[1726248817660,0.001,59650.0,59649.0,0.097802]
[1726248819158,0.0039,59659.0,59658.0,0.08379]
[1726248819359,0.19,59664.0,59658.0,0.08379]
[1726248820168,0.083785,59662.0,59658.0,0.08379]
[1726248820664,0.19,59660.0,59653.0,0.0039]
[1726248820864,0.19,59660.0,59658.0,0.083788]
[1726248821063,0.19,59660.0,59659.0,0.083788]
[1726248821455,0.083785,59662.0,59659.0,0.083788]
[1726248821657,0.083786,59661.0,59659.0,0.083788]
[1726248822261,0.083786,59661.0,59660.0,0.083787]
[1726248823162,0.3608,59663.0,59662.0,0.083784]
[1726248823367,0.08378,59665.0,59664.0,0.083781]
[1726248824471,0.08678,59665.0,59664.0,0.083781]
[1726248826162,0.08778,59665.0,59664.0,0.083781]
[1726248827970,0.44858,59665.0,59664.0,0.083781]
[1726248828974,0.083788,59662.0,59661.0,0.083785]
[1726248829169,0.273788,59662.0,59661.0,0.083785]
[1726248830278,0.273788,59662.0,59661.0,0.085785]
[1726248830779,0.083788,59662.0,59661.0,0.085785]
[1726248833370,0.273788,59662.0,59661.0,0.085785]
[1726248833571,0.357576,59662.0,59661.0,0.085785]
[1726248833870,1.460416,59662.0,59661.0,0.002]
[1726248834078,0.860416,59662.0,59661.0,0.002]
[1726248835585,1.460416,59662.0,59661.0,0.002]
[1726248836077,1.544204,59662.0,59661.0,0.002]
[1726248836273,0.083797,59653.0,59652.0,0.0039]
[1726248836473,0.083801,59650.0,59649.0,0.083801]
[1726248836670,0.273801,59650.0,59649.0,0.083801]
[1726248837386,0.083801,59650.0,59649.0,0.083801]
[1726248838174,0.083801,59650.0,59649.0,0.096801]
[1726248839472,0.083801,59650.0,59649.0,0.110801]
[1726248839874,0.09414858,59650.0,59649.0,0.110801]
[1726248841271,0.36795058,59650.0,59649.0,0.027]
[1726248841871,0.36795058,59650.0,59649.0,0.15471686]
[1726248841872,0.32602121,59650.0,59649.0,0.15471686]
[1726248842182,2.73894121,59650.0,59649.0,0.15471686]
[1726248842880,2.73894121,59650.0,59649.0,0.15271686]
[1726248843284,2.73994121,59650.0,59649.0,0.15071686]
[1726248843978,2.73994121,59650.0,59649.0,0.023]
[1726248844175,2.13994121,59650.0,59649.0,0.15071918]
[1726248844378,1.63702121,59650.0,59649.0,0.2337927]
[1726248844677,1.63702121,59650.0,59649.0,0.23378963]
[1726248844882,1.36321921,59650.0,59649.0,0.15071918]
[1726248845083,0.01134758,59650.0,59649.0,0.23452118]
[1726248845288,0.083801,59650.0,59649.0,0.23452118]
[1726248845470,1.393801,59650.0,59649.0,0.23452118]
[1726248845671,1.393801,59650.0,59649.0,0.33417305]
[1726248845879,1.393801,59650.0,59649.0,0.33417303]
[1726248846184,1.393801,59650.0,59649.0,0.23452118]
[1726248846480,1.393801,59650.0,59649.0,0.15071918]
[1726248846481,1.477602,59650.0,59649.0,0.15071918]
[1726248847077,1.393801,59650.0,59649.0,0.15071918]
[1726248847379,1.393801,59650.0,59649.0,0.23452118]
[1726248847581,1.477602,59650.0,59649.0,0.15071918]
[1726248848188,1.477602,59650.0,59649.0,0.15071404]
[1726248848688,1.393801,59650.0,59649.0,0.23451604]
[1726248848983,1.477602,59650.0,59649.0,0.15071404]
[1726248849582,1.477602,59650.0,59649.0,0.23376171]
[1726248849784,1.477602,59650.0,59649.0,0.023]
[1726248850501,1.477602,59650.0,59649.0,0.106802]
[1726248857004,1.477602,59650.0,59649.0,0.190604]
[1726248857005,1.31,59650.0,59649.0,0.190604]
[1726248857287,0.09392221,59653.0,59652.0,0.083798]
[1726248857684,1.40392221,59653.0,59652.0,0.083798]
[1726248858787,1.76472221,59653.0,59650.0,0.19614767]
[1726248859096,0.273799,59651.0,59650.0,0.083801]
[1726248859886,1.68196422,59653.0,59650.0,0.273801]
[1726248860082,0.0039,59660.0,59658.0,0.08379]
[1726248860390,0.0039,59660.0,59659.0,0.18090686]
[1726248860391,0.3608,59660.0,59659.0,0.18090686]
[1726248860695,0.3608,59660.0,59659.0,0.198288]
[1726248862094,0.3608,59660.0,59659.0,0.200288]
[1726248862690,0.01002527,59662.0,59661.0,0.083785]
[1726248862891,0.01002527,59662.0,59659.0,0.1165]
[1726248862892,1.31108,59665.0,59664.0,0.083781]
[1726248863193,0.3608,59666.0,59665.0,0.08378]
[1726248863591,0.3608,59666.0,59665.0,0.15016428]
[1726248863786,1.39489701,59667.0,59666.0,0.083778]
[1726248864001,1.40412337,59667.0,59666.0,0.083778]
[1726248864899,1.51563458,59667.0,59666.0,0.083778]
[1726248865491,1.52063458,59667.0,59666.0,0.083778]
[1726248865694,0.11651121,59667.0,59666.0,0.167556]
[1726248866002,0.05642339,59667.0,59666.0,0.167556]
[1726248866303,0.06242339,59667.0,59666.0,0.168556]
[1726248866695,0.06242339,59667.0,59666.0,0.084778]
[1726248867099,0.06241962,59667.0,59666.0,0.084778]
[1726248867306,0.05641962,59667.0,59666.0,0.083778]
[1726248867610,0.05641962,59667.0,59666.0,0.088778]
[1726248867807,0.05141962,59667.0,59666.0,0.095778]
[1726248868301,0.05141962,59667.0,59666.0,0.10576707]
[1726248868691,0.05141962,59667.0,59666.0,0.10476707]
[1726248869697,0.05141962,59667.0,59666.0,0.10376707]
[1726248869898,0.19528444,59667.0,59666.0,0.01]
[1726248870095,0.57977362,59667.0,59666.0,0.01]
[1726248870299,0.63986144,59667.0,59666.0,0.01]
[1726248870598,0.63986144,59667.0,59666.0,0.009]
[1726248870999,0.55608444,59667.0,59666.0,0.092778]
[1726248871502,0.55708444,59667.0,59666.0,0.087778]
[1726248872022,0.445577,59667.0,59666.0,0.087778]
[1726248872209,0.445577,59667.0,59666.0,0.090778]
[1726248872210,0.444577,59667.0,59666.0,0.090778]
[1726248872514,0.083787,59661.0,59660.0,0.083787]
[1726248872803,0.634587,59661.0,59660.0,0.083787]
[1726248873219,0.083792,59658.0,59657.0,0.083791]
[1726248873418,0.083795,59656.0,59655.0,0.083793]
[1726248873711,0.273795,59656.0,59655.0,0.083793]
[1726248874411,0.37069847,59661.0,59652.0,0.19]
[1726248874707,0.083785,59661.0,59660.0,0.083787]
[1726248875613,0.084785,59661.0,59660.0,0.083787]
[1726248876610,0.083792,59657.0,59656.0,0.083792]
[1726248876809,0.273792,59657.0,59656.0,0.083792]
[1726248877026,0.083798,59655.0,59654.0,0.083795]
[1726248878106,0.19,59657.0,59656.0,0.083792]
[1726248878304,0.273791,59657.0,59656.0,0.083792]
[1726248879613,0.28404005,59657.0,59656.0,0.086792]
[1726248880612,0.083788,59660.0,59659.0,0.083788]
[1726248881002,0.0039,59668.0,59666.0,0.083778]
[1726248881208,0.00104001,59671.0,59666.0,0.083778]
[1726248881209,0.083773,59671.0,59666.0,0.083778]
[1726248881512,0.273773,59671.0,59666.0,0.083778]
[1726248881810,0.444577,59667.0,59666.0,0.083778]
[1726248882715,0.452577,59667.0,59666.0,0.084778]
[1726248883016,0.452577,59667.0,59666.0,0.05073172]
[1726248883317,0.083783,59663.0,59662.0,0.13351572]
[1726248883707,0.083783,59663.0,59662.0,0.083784]
[1726248883908,1.393783,59663.0,59662.0,0.083784]
[1726248884318,1.393783,59663.0,59662.0,0.13351572]
[1726248884909,1.393783,59663.0,59651.0,0.15815185]
[1726248884910,0.083798,59652.0,59645.0,0.08751219]
[1726248885115,0.083806,59646.0,59633.0,0.69271219]
[1726248885317,0.3608,59643.0,59638.0,0.3608]
[1726248885506,0.3608,59649.0,59642.0,0.083812]
[1726248885712,0.083804,59648.0,59643.0,0.059]
[1726248888018,0.083804,59648.0,59643.0,0.065]
[1726248888514,0.083804,59648.0,59643.0,0.07]
[1726248888813,0.444604,59648.0,59643.0,0.07]
[1726248889214,0.444604,59648.0,59643.0,0.069]
[1726248889717,0.444604,59648.0,59644.0,0.0522]
[1726248890016,0.3608,59648.0,59645.0,0.19]
[1726248890420,0.3608,59648.0,59646.0,0.083805]
[1726248890815,0.0556,59662.0,59647.0,0.86376]
[1726248890816,0.3608,59657.0,59647.0,0.86376]
[1726248891017,0.3608,59662.0,59653.0,0.3608]
[1726248891211,0.3608,59662.0,59654.0,0.0551]
[1726248891926,0.083781,59664.0,59657.0,0.19]
[1726248892115,0.083781,59664.0,59654.0,0.0551]
[1726248892116,0.109,59672.0,59661.0,0.5508]
[1726248892420,0.109,59672.0,59663.0,0.083783]
[1726248892421,0.083777,59667.0,59663.0,0.083783]
[1726248893013,0.083778,59666.0,59663.0,0.083783]
[1726248893512,0.08378,59665.0,59661.0,0.55164]
[1726248893806,0.08378,59665.0,59661.0,0.5508]
[1726248894212,0.08378,59665.0,59663.0,0.001]
[1726248894717,0.08378,59665.0,59663.0,0.002]
[1726248895124,0.08378,59665.0,59661.0,0.3618]
[1726248895418,0.08478,59665.0,59661.0,0.37212097]
[1726248895820,0.08578,59665.0,59661.0,0.45590597]
[1726248896226,0.08378,59665.0,59661.0,0.45590597]
[1726248896518,0.08478,59665.0,59661.0,0.45590597]
[1726248896825,0.08578,59665.0,59661.0,0.45490597]
[1726248897037,0.08578,59665.0,59662.0,0.083783]
[1726248897524,0.08478,59665.0,59662.0,0.083783]
[1726248899014,0.08378,59665.0,59662.0,0.083783]
[1726248899325,0.08378,59665.0,59662.0,0.087783]
[1726248899827,0.083781,59664.0,59662.0,0.092783]
[1726248900217,1.38116001,59668.0,59662.0,0.092783]
[1726248900218,0.273783,59663.0,59662.0,0.009]
[1726248900421,0.083783,59663.0,59662.0,0.092784]
[1726248900818,0.083783,59663.0,59662.0,0.009]
[1726248901020,0.273783,59663.0,59662.0,0.009]
[1726248901418,0.083783,59663.0,59662.0,0.009]
[1726248902518,0.083783,59663.0,59662.0,0.005]
[1726248902914,0.083779,59666.0,59665.0,0.08378]
[1726248904529,0.083779,59666.0,59665.0,0.08578]
[1726248905222,1.19104001,59668.0,59667.0,0.083777]
[1726248905223,0.00104001,59668.0,59667.0,0.083777]
[1726248905419,0.083773,59671.0,59670.0,0.083773]
[1726248907235,0.088773,59671.0,59670.0,0.09375222]
[1726248907424,0.449573,59671.0,59670.0,0.09375222]
[1726248907732,0.088773,59671.0,59670.0,0.09375222]
[1726248908836,0.086773,59671.0,59670.0,0.09375222]
[1726248909031,0.086773,59671.0,59670.0,0.083773]
[1726248909032,0.17821194,59671.0,59670.0,0.083773]
[1726248909337,0.18121194,59671.0,59670.0,0.083773]
[1726248909833,0.37121194,59671.0,59670.0,0.083773]
[1726248910230,0.09743894,59671.0,59670.0,0.083773]
[1726248911634,0.18120994,59671.0,59670.0,0.083773]
[1726248912132,0.09743894,59671.0,59670.0,0.083773]
[1726248912625,0.09543894,59671.0,59670.0,0.083773]
[1726248912823,0.09743894,59671.0,59670.0,0.083773]
[1726248913136,0.18120994,59671.0,59670.0,0.083773]
[1726248913524,0.09743894,59671.0,59670.0,0.167546]
[1726248913724,0.2295742,59671.0,59670.0,0.167546]
[1726248913931,0.09743894,59671.0,59670.0,0.222846]
[1726248914235,0.09743894,59671.0,59670.0,0.139073]
[1726248915430,0.09743894,59671.0,59670.0,0.222846]
[1726248916439,0.27799174,59671.0,59670.0,0.223846]
[1726248916637,0.27699174,59671.0,59670.0,0.223846]
[1726248917030,0.001,59671.0,59670.0,0.223846]
[1726248918642,0.001,59671.0,59670.0,0.810379]
[1726248918846,0.001,59671.0,59670.0,0.913379]
[1726248919441,1.19,59677.0,59676.0,0.083764]
[1726248920747,1.192,59677.0,59676.0,0.084764]
[1726248921943,1.275763,59677.0,59676.0,0.001]
[1726248922144,1.275763,59677.0,59670.0,0.1083]
[1726248922145,1.276763,59677.0,59670.0,0.1083]
[1726248922441,1.276763,59677.0,59676.0,0.001]
[1726248922442,1.278763,59677.0,59676.0,0.001]
[1726248922642,1.278763,59677.0,59676.0,0.084764]
[1726248922643,1.195,59677.0,59676.0,0.084764]
[1726248923344,1.194,59677.0,59676.0,0.083764]
[1726248923546,1.191,59677.0,59676.0,0.083764]
[1726248923739,0.004,59677.0,59676.0,0.167528]
[1726248923939,0.004,59677.0,59676.0,0.251292]
[1726248923940,0.003,59677.0,59676.0,0.251292]
[1726248924246,0.003,59677.0,59676.0,0.168528]
[1726248924247,0.09741925,59677.0,59676.0,0.168528]
[1726248925141,0.09441925,59677.0,59676.0,0.168528]
[1726248925343,0.09741925,59677.0,59676.0,0.168528]
[1726248926347,0.0974147,59677.0,59676.0,0.17853728]
[1726248926948,0.0974147,59677.0,59676.0,0.68125728]
[1726248927147,1.0,59677.0,59676.0,0.76502128]
[1726248927348,0.96281054,59677.0,59676.0,0.76502128]
[1726248927851,1.09639989,59677.0,59676.0,0.76502128]
[1726248928052,0.96281054,59677.0,59676.0,0.76502128]
[1726248928254,0.96581054,59677.0,59676.0,0.76502128]